bitfinex/quotes_SOLUSD_20250811
["timestamp","ask_amount","ask_price","bid_price","bid_amount"]
[1754932675335,0.03,178.72,178.71,15.15309785]
[1754932675963,0.03,178.72,178.7,14.47309785]
[1754932676163,0.03,178.72,178.68,0.68]
[1754932676382,0.03,178.72,178.71,14.47309785]
[1754932676732,0.03,178.72,178.71,20.74875561]
[1754932676954,0.03,178.72,178.71,35.85497118]
[1754932677160,0.03,178.72,178.71,30.25931342]
[1754932677742,0.03,178.72,178.71,36.41453695]
[1754932680334,0.03,178.72,178.71,15.78621557]
[1754932680535,0.03,178.72,178.71,14.47309785]
[1754932680733,0.03,178.72,178.67,89.9]
[1754932680941,0.03,178.72,178.68,14.47309785]
[1754932681150,0.03,178.72,178.71,14.47309785]
[1754932681345,0.03,178.72,178.7,15.10621557]
[1754932681664,0.03,178.72,178.7,14.47309785]
[1754932681844,0.03,178.72,178.69,15.78621557]
[1754932682162,0.03,178.72,178.7,15.15309785]
[1754932682465,0.03,178.72,178.71,15.10621557]
[1754932682639,0.03,178.72,178.71,30.23931342]
[1754932682830,0.03,178.72,178.71,30.79887919]
[1754932683034,0.03,178.72,178.71,30.23931342]
[1754932683337,0.03,178.72,178.71,120.69887919]
[1754932683536,0.03,178.72,178.71,120.13931342]
[1754932684260,1e-08,178.72,178.71,125.73497118]
[1754932685349,1e-08,178.72,178.71,119.47931342]
[1754932685573,1e-08,178.72,178.71,105.00621557]
[1754932685750,1e-08,178.72,178.71,119.47931342]
[1754932685960,1e-08,178.72,178.71,29.57931342]
[1754932686388,1e-08,178.72,178.71,30.23931342]
[1754932686675,1e-08,178.72,178.71,35.83497118]
[1754932686881,0.03,178.74,178.72,41.10621557]
[1754932687069,0.03,178.74,178.73,29.57931342]
[1754932687252,0.03,178.74,178.73,30.23931342]
[1754932688266,0.03,178.74,178.73,21.36124718]
[1754932688474,0.03,178.74,178.73,29.57931342]
[1754932688784,0.03,178.74,178.72,14.47309785]
[1754932689278,0.03,178.74,178.7,40.47309785]
[1754932689591,14.47309785,178.72,178.7,89.9]
[1754932689883,14.47309785,178.71,178.66,20.0703131]
[1754932690050,15.16309785,178.72,178.67,26.0]
[1754932690255,14.47309785,178.73,178.68,29.57931342]
[1754932690469,15.19309785,178.74,178.7,15.10621557]
[1754932690683,14.47309785,178.71,178.7,89.9]
[1754932690982,15.16309785,178.71,178.7,89.9]
[1754932691162,15.16309785,178.71,178.66,119.47931342]
[1754932691556,14.47309785,178.71,178.67,0.66]
[1754932691875,14.47309785,178.72,178.67,15.13309785]
[1754932692381,14.47309785,178.71,178.66,119.47931342]
[1754932692584,14.47309785,178.71,178.66,105.00621557]
[1754932692776,15.16309785,178.7,178.66,105.00621557]
[1754932692958,14.47309785,178.69,178.66,105.00621557]
[1754932693157,15.16309785,178.7,178.66,105.00621557]
[1754932693478,5.62477321,178.74,178.66,105.00621557]
[1754932693479,0.69,178.73,178.66,105.00621557]
[1754932693683,14.47309785,178.71,178.66,119.47931342]
[1754932694260,14.47309785,178.71,178.66,120.13931342]
[1754932694461,14.47309785,178.71,178.66,105.66621557]
[1754932694684,14.47309785,178.71,178.66,120.13931342]
[1754932694977,14.47309785,178.72,178.68,15.10621557]
[1754932695180,14.47309785,178.71,178.68,15.10621557]
[1754932695384,14.47309785,178.7,178.67,15.10621557]
[1754932695582,14.47309785,178.71,178.67,15.10621557]
[1754932695881,14.47309785,178.72,178.67,30.23931342]
[1754932696080,14.47309785,178.72,178.67,120.13931342]
[1754932696379,9.60134457,178.74,178.7,15.10621557]
[1754932696589,9.60134457,178.74,178.7,105.00621557]
[1754932697294,0.03,178.74,178.7,105.00621557]
[1754932697597,9.60134457,178.74,178.7,105.00621557]
[1754932697796,9.57134457,178.73,178.7,89.9]
[1754932697975,9.57134457,178.72,178.7,89.9]
[1754932698483,9.57134457,178.73,178.7,89.9]
[1754932698669,9.57134457,178.72,178.7,89.9]
[1754932698868,10.26134457,178.71,178.7,89.9]
[1754932699067,6.31475299,178.74,178.7,89.9]
[1754932699269,9.57134457,178.71,178.7,89.9]
[1754932699676,0.69,178.73,178.7,89.9]
[1754932699677,9.57134457,178.73,178.7,89.9]
[1754932699879,0.03,178.74,178.7,89.9]
[1754932700080,9.57134457,178.72,178.7,89.9]
[1754932700701,9.57134457,178.71,178.7,89.9]
[1754932702689,10.26134457,178.71,178.7,89.9]
[1754932702894,9.57134457,178.71,178.7,89.9]
[1754932703071,0.03,178.74,178.7,89.9]
[1754932703273,9.57134457,178.73,178.7,89.9]
[1754932703672,9.57134457,178.71,178.7,89.9]
[1754932703972,10.26134457,178.71,178.7,89.9]
[1754932704770,9.57134457,178.71,178.7,89.9]
[1754932704969,9.57134457,178.72,178.7,89.9]
[1754932705473,9.57134457,178.71,178.7,89.9]
[1754932707291,6.28530298,178.73,178.7,89.9]
[1754932707292,0.03,178.74,178.7,89.9]
[1754932707476,9.57134457,178.72,178.7,89.9]
[1754932708598,9.57134457,178.71,178.7,89.9]
[1754932708762,10.26134457,178.71,178.7,89.9]
[1754932709190,15.85700233,178.71,178.7,89.9]
[1754932709677,19.95922511,178.71,178.68,0.06]
[1754932709868,9.57134457,178.69,178.68,0.06]
[1754932710376,10.26134457,178.69,178.68,0.06]
[1754932710698,9.57134457,178.69,178.68,0.06]
[1754932711491,15.16762863,178.69,178.68,0.06]
[1754932713288,15.84762863,178.69,178.68,0.06]
[1754932713597,15.16762863,178.69,178.68,0.06]
[1754932714984,15.84762863,178.69,178.68,0.06]
[1754932715188,15.16762863,178.69,178.68,0.06]
[1754932717902,9.57134457,178.69,178.68,0.06]
[1754932718091,9.57134457,178.7,178.68,0.06]
[1754932718510,9.57134457,178.71,178.68,0.06]
[1754932718816,9.60134457,178.74,178.69,10.28134457]
[1754932718994,9.60134457,178.74,178.7,0.71]
[1754932719198,9.57134457,178.73,178.68,10.34134457]
[1754932719397,9.57134457,178.71,178.68,0.06]
[1754932719708,9.57134457,178.7,178.68,0.06]
[1754932720014,9.57134457,178.71,178.68,0.77]
[1754932720395,0.03,178.74,178.69,10.28134457]
[1754932720603,9.60134457,178.74,178.7,0.71]
[1754932720798,0.03,178.74,178.72,9.57134457]
[1754932720999,9.57134457,178.73,178.7,0.71]
[1754932721209,9.57134457,178.73,178.68,9.63134457]
[1754932721517,0.03,178.74,178.68,0.77]
[1754932721518,9.57134457,178.72,178.68,0.77]
[1754932722013,9.57134457,178.7,178.68,0.06]
[1754932722214,10.25134457,178.69,178.68,0.06]
[1754932722413,15.84762863,178.69,178.68,0.06]
[1754932722917,19.9495343,178.69,178.68,0.06]
[1754932723116,19.9495343,178.69,178.66,0.06]
[1754932723117,26.0,178.67,178.66,0.06]
[1754932723292,39.67325024,178.67,178.6,0.06]
[1754932723498,35.57134457,178.65,178.6,0.06]
[1754932724015,39.01064649,178.65,178.6,0.06]
[1754932724220,36.25134457,178.65,178.6,0.06]
[1754932724516,5.59736821,178.66,178.61,10.28134457]
[1754932724707,9.57134457,178.65,178.61,0.71]
[1754932724904,5.59736821,178.66,178.61,0.71]
[1754932725290,9.57134457,178.65,178.61,0.71]
[1754932726016,9.57134457,178.66,178.64,0.77]
[1754932726319,9.57134457,178.65,178.64,0.06]
[1754932726922,9.57134457,178.66,178.64,0.77]
[1754932727216,9.57134457,178.66,178.64,0.06]
[1754932727419,5.59662064,178.68,178.64,0.06]
[1754932727618,9.57134457,178.65,178.64,0.06]
[1754932728321,10.25134457,178.65,178.64,0.06]
[1754932728495,0.68,178.65,178.64,0.06]
[1754932728693,41.84888165,178.65,178.64,0.06]
[1754932729509,32.27753708,178.65,178.64,0.06]
[1754932729693,41.84888165,178.65,178.64,0.06]
[1754932730811,41.84888165,178.65,178.6,0.06]
[1754932730812,55.84272435,178.65,178.6,0.06]
[1754932731118,9.57134457,178.61,178.6,0.06]
[1754932731720,26.0,178.59,178.58,0.06]
[1754932731933,0.68,178.6,178.58,0.06]
[1754932732098,9.57134457,178.59,178.58,0.06]
[1754932732426,26.0,178.61,178.59,0.71]
[1754932732623,9.57134457,178.6,178.59,0.71]
[1754932732802,35.57134457,178.61,178.59,0.71]
[1754932733122,5.5969105,178.67,178.6,9.57134457]
[1754932733417,15.16825507,178.67,178.61,0.71]
[1754932733618,9.57134457,178.65,178.61,0.71]
[1754932733826,9.57134457,178.62,178.58,0.77]
[1754932734000,9.57134457,178.64,178.59,0.71]
[1754932734199,19.58918676,178.67,178.6,0.71]
[1754932734423,9.57134457,178.65,178.6,90.61]
[1754932734659,0.68,178.68,178.63,9.57134457]
[1754932734660,9.57134457,178.68,178.63,9.57134457]
[1754932734797,0.68,178.73,178.64,9.57134457]
[1754932734997,9.57134457,178.69,178.64,10.28134457]
[1754932735197,5.59534467,178.72,178.64,99.47134457]
[1754932735425,9.57134457,178.7,178.65,10.28134457]
[1754932735608,5.59534467,178.72,178.65,0.71]
[1754932735819,5.59534467,178.72,178.65,10.28134457]
[1754932736007,15.16645759,178.73,178.68,9.57134457]
[1754932736208,15.1961249,178.74,178.69,10.28134457]
[1754932736403,15.1961249,178.74,178.7,0.71]
[1754932736612,5.62477995,178.74,178.71,0.71]
[1754932736842,0.03,178.74,178.71,0.71]
[1754932737150,9.60134457,178.74,178.71,0.71]
[1754932737498,9.60134457,178.74,178.66,5.59720785]
[1754932737499,0.03,178.74,178.72,0.71]
[1754932737702,0.03,178.74,178.73,0.71]
[1754932738229,0.03,178.74,178.7,9.57134457]
[1754932738642,0.03,178.74,178.72,0.71]
[1754932740511,0.03,178.74,178.73,0.71]
[1754932741010,0.03,178.74,178.71,9.57134457]
[1754932741215,0.03,178.74,178.71,10.28134457]
[1754932741640,0.03,178.74,178.72,0.71]
[1754932742121,0.03,178.74,178.72,10.28134457]
[1754932742326,0.03,178.74,178.73,10.28134457]
[1754932742526,0.03,178.74,178.72,9.57134457]
[1754932742845,0.03,178.74,178.7,0.71]
[1754932742846,9.60134457,178.74,178.7,10.28134457]
[1754932743018,5.59534467,178.72,178.67,0.7]
[1754932743218,5.59534467,178.72,178.68,24.67756014]
[1754932743445,9.57134457,178.73,178.69,10.27134457]
[1754932743446,5.59510301,178.73,178.69,10.27134457]
[1754932743612,9.57134457,178.71,178.68,0.7]
[1754932743951,5.59510301,178.73,178.66,15.80621557]
[1754932744112,15.19614769,178.74,178.69,9.57134457]
[1754932744309,9.57134457,178.73,178.7,0.7]
[1754932744737,0.03,178.74,178.71,0.7]
[1754932744917,0.03,178.74,178.72,0.7]
[1754932745620,0.03,178.74,178.73,10.27134457]
[1754932745809,0.03,178.74,178.73,0.7]
[1754932746008,0.03,178.74,178.67,5.5969105]
[1754932746009,0.03,178.74,178.71,15.80621557]
[1754932746431,0.03,178.74,178.72,0.7]
[1754932746818,0.03,178.74,178.73,9.57134457]
[1754932747315,0.03,178.75,178.74,15.10621557]
[1754932747522,0.03,178.75,178.74,25.37756014]
[1754932748248,9.60134457,178.75,178.72,15.10621557]
[1754932748426,9.60134457,178.75,178.72,15.80621557]
[1754932748820,9.60134457,178.75,178.69,126.17134457]
[1754932748821,9.57134457,178.74,178.69,126.17134457]
[1754932749016,0.03,178.75,178.69,26.7]
[1754932749210,9.57134457,178.72,178.69,26.7]
[1754932749440,9.57134457,178.7,178.65,0.7]
[1754932749673,9.57134457,178.67,178.65,0.7]
[1754932749832,9.57134457,178.67,178.6,5.65902386]
[1754932749833,9.57134457,178.66,178.62,0.7]
[1754932750022,9.57134457,178.66,178.6,0.06]
[1754932750023,9.57134457,178.65,178.6,9.63134457]
[1754932750215,9.57134457,178.63,178.6,0.06]
[1754932750420,9.57134457,178.64,178.6,15.16621557]
[1754932750721,9.57134457,178.66,178.61,0.7]
[1754932751126,5.59692925,178.67,178.62,0.7]
[1754932751323,9.57134457,178.65,178.6,0.06]
[1754932751532,5.59666613,178.68,178.63,0.7]
[1754932751846,9.57134457,178.65,178.63,0.7]
[1754932752236,9.57134457,178.66,178.63,0.7]
[1754932752436,9.57134457,178.67,178.64,0.7]
[1754932752627,0.72,178.7,178.64,0.7]
[1754932752628,9.57134457,178.68,178.64,0.7]
[1754932752825,26.0,178.71,178.64,0.7]
[1754932752826,9.57134457,178.71,178.66,9.57134457]
[1754932753026,9.57134457,178.71,178.67,0.7]
[1754932753330,9.57134457,178.7,178.65,10.27134457]
[1754932753534,9.57134457,178.7,178.66,0.7]
[1754932754341,9.57134457,178.71,178.67,0.7]
[1754932754544,9.60134457,178.73,178.68,10.27134457]
[1754932754741,0.03,178.73,178.71,9.57134457]
[1754932754946,0.03,178.73,178.71,0.7]
[1754932755147,0.03,178.73,178.72,10.27134457]
[1754932755327,0.03,178.73,178.72,25.37756014]
[1754932755532,0.03,178.73,178.72,15.80621557]
[1754932755737,0.03,178.73,178.72,25.37756014]
[1754932756437,9.60134457,178.73,178.69,15.10621557]
[1754932756627,9.60134457,178.73,178.7,9.57134457]
[1754932756628,0.03,178.73,178.7,9.57134457]
[1754932756821,0.03,178.73,178.72,9.57134457]
[1754932757056,0.03,178.73,178.72,24.67756014]
[1754932757241,0.03,178.73,178.72,25.37756014]
[1754932757456,0.03,178.73,178.72,15.80621557]
[1754932757772,9.60134457,178.73,178.69,15.10621557]
[1754932757928,9.57134457,178.72,178.69,15.10621557]
[1754932758854,9.57134457,178.71,178.67,15.10621557]
[1754932759240,0.03,178.73,178.64,9.571345]
[1754932759241,9.57134457,178.68,178.64,9.571345]
[1754932759438,0.72,178.7,178.62,50.67756014]
[1754932759642,9.57134457,178.68,178.64,15.10621557]
[1754932760054,9.57134457,178.68,178.64,15.80621557]
[1754932760559,9.57134457,178.68,178.62,26.0]
[1754932760560,9.57134457,178.67,178.61,10.271344]
[1754932760758,9.57134457,178.68,178.63,15.10621557]
[1754932760946,9.57134457,178.68,178.63,24.67756014]
[1754932761265,9.57134457,178.68,178.64,0.7]
[1754932761853,5.59539853,178.72,178.65,0.7]
[1754932762177,9.57134457,178.69,178.66,15.10621557]
[1754932762365,9.57134457,178.7,178.66,105.70621557]
[1754932763357,9.57134457,178.69,178.66,105.00621557]
[1754932764232,9.57134457,178.69,178.66,105.70621557]
[1754932765475,9.57134457,178.67,178.66,89.9]
[1754932766439,9.57134457,178.69,178.66,90.6]
[1754932767058,9.57134457,178.68,178.66,90.6]
[1754932767357,0.72,178.71,178.66,89.9]
[1754932767550,9.57134457,178.67,178.66,89.9]
[1754932767749,5.59540096,178.72,178.66,89.9]
[1754932767750,5.59534467,178.72,178.66,89.9]
[1754932767956,9.57134457,178.67,178.64,15.10621557]
[1754932768164,9.57134457,178.67,178.65,0.7]
[1754932768338,9.57134457,178.68,178.65,0.7]
[1754932768552,9.57134457,178.67,178.64,15.10621557]
[1754932768972,9.57134457,178.66,178.62,0.76]
[1754932769166,9.57134457,178.65,178.62,0.06]
[1754932769364,9.57134457,178.64,178.62,0.06]
[1754932769571,0.72,178.69,178.62,0.76]
[1754932769572,9.57134457,178.65,178.62,0.76]
[1754932770156,5.59729269,178.66,178.62,0.06]
[1754932770477,9.57134457,178.64,178.62,0.06]
[1754932771586,9.57134457,178.63,178.62,0.06]
[1754932771769,6.31729269,178.66,178.62,0.06]
[1754932771977,9.57134457,178.65,178.62,0.06]
[1754932772279,9.57134457,178.63,178.62,0.06]
[1754932772978,5.59729269,178.66,178.62,0.06]
[1754932773169,9.57134457,178.66,178.63,0.69]
[1754932774380,31.5963665,178.69,178.64,0.69]
[1754932774552,6.30600423,178.7,178.64,89.9]
[1754932775077,9.57134457,178.66,178.64,89.9]
[1754932775291,6.30600423,178.7,178.64,89.9]
[1754932775456,9.57134457,178.67,178.64,89.9]
[1754932775971,9.57134457,178.66,178.64,89.9]
[1754932776359,9.57134457,178.65,178.64,89.9]
[1754932776754,0.71,178.69,178.64,89.9]
[1754932777088,9.57134457,178.69,178.65,0.69]
[1754932777264,9.57134457,178.68,178.65,0.69]
[1754932777656,9.57134457,178.67,178.64,89.9]
[1754932778168,9.57134457,178.67,178.64,90.59]
[1754932779084,9.57134457,178.68,178.64,90.59]
[1754932779284,9.57134457,178.69,178.64,90.59]
[1754932779470,9.57134457,178.68,178.64,90.59]
[1754932780658,9.57134457,178.65,178.64,89.9]
[1754932781060,0.71,178.68,178.62,89.96]
[1754932781363,9.57134457,178.64,178.62,89.96]
[1754932781699,9.57134457,178.65,178.62,89.96]
[1754932782294,5.59755311,178.65,178.62,89.96]
[1754932782459,9.57134457,178.63,178.62,89.96]
[1754932783595,6.30755311,178.65,178.62,89.96]
[1754932783794,9.57134457,178.63,178.62,89.96]
[1754932783999,15.16950837,178.63,178.62,89.96]
[1754932784787,5.5981638,178.63,178.62,89.96]
[1754932784967,5.5981638,178.63,178.62,0.06]
[1754932785575,15.16950837,178.63,178.62,0.06]
[1754932785777,15.87950837,178.63,178.62,0.06]
[1754932786467,19.98871942,178.63,178.62,0.06]
[1754932787286,15.87950837,178.63,178.62,0.06]
[1754932787899,5.5981638,178.63,178.62,0.06]
[1754932788099,15.16950837,178.63,178.62,0.06]
[1754932788600,9.57134457,178.63,178.62,0.06]
[1754932789168,14.29880676,178.72,178.62,10.32134457]
[1754932789370,9.57134457,178.66,178.63,0.69]
[1754932789775,9.57134457,178.65,178.62,0.06]
[1754932789965,26.0,178.68,178.62,0.06]
[1754932789966,9.57134457,178.63,178.62,0.06]
[1754932790386,5.59761185,178.65,178.62,0.06]
[1754932790569,9.57134457,178.65,178.62,0.75]
[1754932790772,5.5969105,178.67,178.63,0.69]
[1754932791002,9.57134457,178.66,178.63,0.69]
[1754932791211,15.16825507,178.67,178.64,0.69]
[1754932791772,15.16731547,178.7,178.65,10.26134457]
[1754932792012,9.57134457,178.69,178.65,0.69]
[1754932792780,9.57134457,178.69,178.64,9.57134457]
[1754932792998,9.57134457,178.7,178.66,0.69]
[1754932793182,41.16707822,178.71,178.67,0.69]
[1754932793371,9.57134457,178.7,178.67,0.69]
[1754932793573,9.57134457,178.7,178.65,9.57134457]
[1754932793766,9.57134457,178.7,178.65,15.10621557]
[1754932793767,9.57134457,178.69,178.65,15.10621557]
[1754932794183,15.16794183,178.68,178.63,10.26134457]
[1754932794387,9.57134457,178.67,178.64,15.10621557]
[1754932794601,6.30659726,178.68,178.63,15.10621557]
[1754932794773,9.57134457,178.67,178.63,15.79621557]
[1754932796476,15.16833452,178.67,178.63,15.79621557]
[1754932796682,9.57134457,178.65,178.62,0.06]
[1754932797621,9.57134457,178.66,178.62,0.06]
[1754932797792,9.57134457,178.65,178.62,0.06]
[1754932798402,9.57134457,178.63,178.62,0.06]
[1754932798809,15.16927552,178.64,178.62,0.06]
[1754932800411,15.16897573,178.65,178.62,0.06]
[1754932800792,9.57134457,178.63,178.62,0.06]
[1754932801099,13.68824321,178.63,178.62,0.06]
[1754932801312,14.39824321,178.63,178.6,0.06]
[1754932801605,9.57134457,178.61,178.6,0.06]
[1754932801805,13.68824321,178.61,178.6,0.06]
[1754932802006,14.39824321,178.61,178.6,0.06]
[1754932802238,4.82689864,178.61,178.6,0.06]
[1754932802388,13.69037894,178.61,178.6,0.06]
[1754932802705,19.289803,178.61,178.6,0.06]
[1754932802907,15.17013523,178.61,178.6,0.06]
[1754932803277,5.59879066,178.61,178.6,0.06]
[1754932803479,26.0,178.63,178.6,0.06]
[1754932803679,4.12016858,178.62,178.6,0.06]
[1754932803878,9.57134457,178.63,178.6,0.06]
[1754932804077,5.59753708,178.65,178.6,9.63134457]
[1754932804283,4.12155904,178.64,178.61,0.7]
[1754932804528,4.12155904,178.64,178.62,10.27134457]
[1754932804811,5.59668053,178.68,178.63,10.27134457]
[1754932805000,4.12186792,178.67,178.64,0.7]
[1754932805510,15.1680251,178.68,178.64,0.7]
[1754932805692,4.12225447,178.67,178.62,24.67756014]
[1754932806013,4.12187779,178.66,178.63,0.7]
[1754932806392,9.57134457,178.68,178.64,0.7]
[1754932806592,4.12278259,178.67,178.64,0.7]
[1754932806994,5.59590169,178.71,178.66,9.57134457]
[1754932807198,4.12294981,178.7,178.67,0.7]
[1754932807401,9.57134457,178.72,178.68,0.7]
[1754932807619,4.12325473,178.71,178.68,10.27134457]
[1754932807820,9.60134457,178.73,178.69,0.7]
[1754932807983,4.12363709,178.72,178.71,9.57134457]
[1754932808182,4.12363709,178.72,178.71,10.27134457]
[1754932808407,0.03,178.73,178.71,25.37756014]
[1754932808718,0.03,178.74,178.72,56.97290481]
[1754932808900,0.03,178.75,178.73,24.67756014]
[1754932809114,0.03,178.75,178.74,9.57134457]
[1754932809912,0.03,178.75,178.74,10.27134457]
[1754932813598,0.03,178.75,178.74,31.53175057]
[1754932813921,0.03,178.76,178.75,15.10621557]
[1754932814221,0.03,178.78,178.77,41.10621557]
[1754932814394,0.03,178.78,178.77,41.66559354]
[1754932814589,0.03,178.79,178.78,15.10621557]
[1754932814923,0.03,178.81,178.8,26.0]
[1754932815110,0.03,178.81,178.8,60.80818882]
[1754932815419,0.03,178.81,178.8,61.50818882]
[1754932815603,0.03,178.81,178.8,56.9704013]
[1754932816089,0.03,178.81,178.8,51.37756014]
[1754932816994,0.03,178.81,178.8,56.9704013]
[1754932817623,0.03,178.81,178.8,66.54174587]
[1754932817794,0.03,178.81,178.8,68.78057287]
[1754932817989,0.2,178.88,178.81,15.10621557]
[1754932818217,0.2,178.88,178.83,50.67756014]
[1754932818740,0.2,178.88,178.83,51.37756014]
[1754932819021,0.2,178.88,178.84,15.10621557]
[1754932819192,0.2,178.88,178.87,50.67756014]
[1754932819804,0.2,178.88,178.83,0.55919029]
[1754932819805,0.2,178.88,178.83,0.7]
[1754932820029,0.89,178.88,178.85,24.67756014]
[1754932820198,0.89,178.88,178.81,0.7]
[1754932820199,10.46134457,178.88,178.81,0.7]
[1754932820395,0.69,178.87,178.82,15.10621557]
[1754932820597,9.57134457,178.85,178.81,15.10621557]
[1754932820793,0.69,178.85,178.81,24.67756014]
[1754932821009,10.26134457,178.85,178.81,15.10621557]
[1754932823525,5.59066326,178.87,178.81,15.10621557]
[1754932823728,0.69,178.84,178.81,15.10621557]
[1754932824110,10.26134457,178.84,178.79,19.83268957]
[1754932824324,9.57134457,178.81,178.78,26.0]
[1754932824506,10.26134457,178.8,178.76,25.36756057]
[1754932824826,9.57134457,178.81,178.76,9.57134457]
[1754932825215,9.57134457,178.83,178.78,15.10621557]
[1754932825416,9.57134457,178.83,178.78,25.37756014]
[1754932825618,0.69,178.82,178.75,16.796842]
[1754932825918,9.57134457,178.79,178.76,15.10621557]
[1754932826327,0.69,178.81,178.76,15.10621557]
[1754932826508,9.57134457,178.79,178.76,15.10621557]
[1754932826720,10.26134457,178.8,178.76,15.10621557]
[1754932826920,0.69,178.83,178.77,10.27134457]
[1754932827113,10.26134457,178.83,178.78,9.57134457]
[1754932827513,10.26134457,178.83,178.79,15.10621557]
[1754932827714,6.28133734,178.85,178.79,15.10621557]
[1754932827933,0.69,178.87,178.81,15.10621557]
[1754932828238,9.57134457,178.85,178.81,15.10621557]
[1754932828428,6.28065242,178.87,178.81,15.80621557]
[1754932828616,9.57134457,178.86,178.81,25.37756014]
[1754932829517,10.26134457,178.85,178.79,9.571344]
[1754932829707,10.26134457,178.85,178.8,15.10621557]
[1754932829708,9.57134457,178.82,178.8,15.10621557]
[1754932829909,9.57134457,178.83,178.79,15.10621557]
[1754932830144,10.26134457,178.85,178.8,9.57134457]
[1754932830442,9.57134457,178.85,178.81,0.7]
[1754932830646,9.77134457,178.88,178.83,15.10621557]
[1754932830937,9.57134457,178.87,178.83,105.70621557]
[1754932831236,9.57134457,178.86,178.83,105.00621557]
[1754932831802,9.57134457,178.87,178.83,105.00621557]
[1754932832257,9.57134457,178.87,178.83,105.70621557]
[1754932832739,9.57134457,178.86,178.83,105.00621557]
[1754932832905,9.57134457,178.84,178.8,0.06]
[1754932833106,9.57134457,178.83,178.8,0.06]
[1754932833741,9.57134457,178.81,178.8,0.06]
[1754932834127,10.25134457,178.81,178.8,0.06]
[1754932835640,15.84387295,178.81,178.8,0.06]
[1754932836643,15.16387295,178.81,178.8,0.06]
[1754932836828,5.59190292,178.83,178.8,0.06]
[1754932837031,9.57134457,178.81,178.8,0.06]
[1754932837953,0.68,178.81,178.8,0.06]
[1754932838258,10.25134457,178.81,178.8,0.06]
[1754932839335,9.57134457,178.81,178.8,0.06]
[1754932840271,15.16387295,178.81,178.8,0.06]
[1754932840443,15.84387295,178.81,178.8,0.06]
[1754932841722,9.57134457,178.81,178.8,0.06]
[1754932841934,5.59230949,178.82,178.8,0.06]
[1754932842127,9.57134457,178.81,178.8,0.06]
[1754932843846,9.57134457,178.82,178.8,0.06]
[1754932844047,9.57134457,178.83,178.8,0.06]
[1754932844354,5.59203374,178.83,178.8,0.06]
[1754932844533,9.57134457,178.81,178.8,0.06]
[1754932845540,5.59203374,178.83,178.8,0.06]
[1754932845748,9.57134457,178.81,178.8,0.06]
[1754932846126,15.84387295,178.81,178.8,0.06]
[1754932846327,26.0,178.79,178.78,0.06]
[1754932846563,39.64774466,178.79,178.76,0.06]
[1754932846731,9.57134457,178.77,178.76,0.06]
[1754932847236,14.33248657,178.77,178.76,0.06]
[1754932847538,14.33263963,178.77,178.76,0.06]
[1754932848051,19.92771304,178.77,178.76,0.06]
[1754932849824,19.24771304,178.77,178.76,0.06]
[1754932850030,9.57134457,178.77,178.76,0.06]
[1754932850229,13.66392995,178.77,178.76,0.06]
[1754932850426,19.25770966,178.77,178.76,0.06]
[1754932851160,15.16512428,178.77,178.76,0.06]
[1754932851339,19.9451358,178.77,178.76,0.06]
[1754932852258,9.69379123,178.77,178.76,0.06]
[1754932852466,19.26715432,178.77,178.76,0.06]
[1754932852641,13.67337461,178.77,178.76,0.06]
[1754932852946,9.57134457,178.77,178.76,0.75]
[1754932853136,13.67398471,178.77,178.76,0.06]
[1754932853340,26.0,178.8,178.76,0.06]
[1754932853341,9.57134457,178.8,178.76,0.75]
[1754932853537,13.67644416,178.79,178.77,0.69]
[1754932853740,0.03,178.82,178.77,0.69]
[1754932854070,9.57134457,178.78,178.76,0.06]
[1754932854367,15.16512428,178.77,178.76,0.06]
[1754932854534,19.94983738,178.77,178.76,0.06]
[1754932855057,19.26983738,178.77,178.76,0.06]
[1754932855443,19.94983738,178.77,178.76,0.06]